bitfinex-derivatives/quotes_ETHF0:USTF0_20250316
["timestamp","ask_amount","ask_price","bid_price","bid_amount"]
[1742138331457,3.08749,1891.6,1891.5,2.49144]
[1742138332763,3.08749,1891.6,1891.5,1.434]
[1742138332955,1.05744,1891.5,1891.4,3.2078]
[1742138333261,3.16124,1891.5,1891.4,3.2078]
[1742138334565,3.16124,1891.5,1891.4,4.2653]
[1742138334865,3.16124,1891.5,1891.4,3.2078]
[1742138335059,7.24741,1891.5,1891.1,1.06557414]
[1742138335263,1.05761,1891.2,1891.1,1.06557414]
[1742138335457,1.0576,1891.3,1891.2,1.05757]
[1742138337568,1.05761,1891.2,1891.1,2.43124414]
[1742138337759,1.71771,1891.2,1891.1,2.43124414]
[1742138338560,2.43898,1891.3,1891.2,1.05761]
[1742138338767,1.3814,1891.3,1891.2,4.26541]
[1742138339565,0.6994,1891.6,1891.5,1.05744]
[1742138339961,1.3917,1891.6,1891.5,1.05744]
[1742138340157,0.6994,1891.6,1891.5,1.05744]
[1742138340362,0.6994,1891.6,1891.5,1.77654]
[1742138340956,0.70022414,1891.8,1891.7,1.05733]
[1742138341164,2.47104414,1891.8,1891.7,1.05733]
[1742138341365,1.41372414,1891.8,1891.7,1.05733]
[1742138341767,1.05733,1891.7,1891.6,2.41314]
[1742138341969,2.47104414,1891.8,1891.7,1.05733]
[1742138342269,2.47104414,1891.8,1891.7,2.46013]
[1742138342461,0.00792414,1891.8,1891.7,5.66793]
[1742138345861,5.8499,1892.6,1892.2,1.05701]
[1742138346071,1.3775,1892.3,1892.0,1.05714]
[1742138346376,0.7186,1892.2,1892.1,1.05711]
[1742138346870,1.3775,1892.2,1892.1,4.26491]
[1742138347979,2.43455,1892.2,1892.1,4.26491]
[1742138348276,1.3775,1892.2,1892.1,4.26491]
[1742138349477,0.00792414,1892.3,1892.2,1.05705]
[1742138349875,0.00792414,1892.3,1892.2,4.62405]
[1742138351474,1.05705,1892.2,1892.1,3.2078]
[1742138351779,1.05708,1892.2,1892.0,3.57493033]
[1742138352080,2.0668,1892.1,1892.0,7.83989033]
[1742138352577,1.3512,1892.1,1892.0,7.83989033]
[1742138353271,1.3512,1892.1,1892.0,8.55478414]
[1742138353978,1.78055414,1892.3,1892.2,1.05705]
[1742138353979,0.00792414,1892.3,1892.2,1.05705]
[1742138354178,0.00792414,1892.3,1892.2,4.26485]
[1742138355480,1.05669,1892.9,1892.3,2.64241]
[1742138355780,1.3342,1892.7,1892.6,1.05683]
[1742138355978,1.3342,1892.7,1892.6,4.26463]
[1742138356772,0.00792414,1892.8,1892.7,1.05677]
[1742138356980,0.00792414,1892.8,1892.7,4.62277]
[1742138359078,1.06464414,1892.8,1892.7,3.566]
[1742138359283,3.88544414,1892.8,1892.7,3.566]
[1742138359484,2.82872414,1892.8,1892.7,4.62277]
[1742138360278,3.88544414,1892.8,1892.7,3.566]
[1742138360476,8.4671,1893.3,1892.7,3.566]
[1742138360680,2.8337,1893.2,1892.9,4.26445]
[1742138360882,1.0566,1893.0,1892.9,3.2078]
[1742138361284,1.05672,1892.8,1892.7,6.19e-06]
[1742138361483,1.05672,1892.8,1892.7,1.05673]
[1742138361688,2.51612414,1892.9,1892.7,2.43703]
[1742138361984,0.00792414,1892.9,1892.8,4.26452]
[1742138362186,0.00792414,1892.9,1892.8,5.64482]
[1742138365489,0.00792414,1892.9,1892.8,6.34222]
[1742138368887,0.00792414,1892.9,1892.8,4.26452]
[1742138369091,0.70932414,1892.9,1892.8,7.82952]
[1742138369579,2.10862414,1892.9,1892.8,7.82952]
[1742138373689,2.10862414,1892.9,1892.8,9.26852]
[1742138375990,3.16528414,1892.9,1892.8,3.2078]
[1742138376189,1.05677,1892.7,1892.6,3.2078]
[1742138376394,1.05677,1892.7,1892.6,4.26463]
[1742138376887,2.41937,1892.7,1892.6,3.2078]
[1742138377085,2.41937,1892.7,1892.6,4.26463]
[1742138377396,2.41937,1892.7,1892.6,3.2078]
[1742138377788,1.05683,1892.6,1892.5,1.05686]
[1742138378091,2.41943,1892.6,1892.5,1.05686]
[1742138378801,1.3626,1892.6,1892.5,1.05686]
[1742138379096,1.3626,1892.6,1892.5,2.51506]
[1742138379286,2.41943,1892.6,1892.5,2.51506]
[1742138379484,1.3626,1892.6,1892.5,2.51506]
[1742138379689,2.41943,1892.6,1892.5,2.51506]
[1742138379884,1.3626,1892.6,1892.5,2.51506]
[1742138380491,2.41943,1892.6,1892.5,1.4582]
[1742138380699,2.41943,1892.6,1892.4,4.26474]
[1742138380700,1.05688,1892.5,1892.4,4.26474]
[1742138380898,3.17678,1892.5,1892.4,7.82874]
[1742138381496,3.17678,1892.5,1892.4,4.26474]
[1742138381697,3.17678,1892.5,1892.4,3.2078]
[1742138381899,1.05699,1892.3,1892.2,6.19e-06]
[1742138382199,1.05699,1892.3,1892.2,6.7718]
[1742138382408,1.05699,1892.3,1892.2,3.2078]
[1742138382708,1.44,1892.3,1892.0,7.83686414]
[1742138382905,1.05708,1892.2,1892.0,9.27206414]
[1742138383200,1.44,1892.1,1892.0,9.27206414]
[1742138383398,1.44,1892.1,1892.0,7.83686414]
[1742138387207,2.49711,1892.1,1892.0,7.83686414]
[1742138387407,3.16081,1892.1,1892.0,7.83686414]
[1742138387608,3.16081,1892.1,1892.0,7.83688414]
[1742138388007,2.1037,1892.1,1892.0,7.83688414]
[1742138390903,3.16081,1892.1,1892.0,7.83688414]
[1742138391105,2.1037,1892.1,1892.0,7.83688414]
[1742138396907,1.44,1892.1,1892.0,7.83688414]
[1742138400616,1.44,1892.1,1892.0,3.21572414]
[1742138400917,1.44,1892.1,1892.0,4.27288414]
[1742138401214,1.44,1892.1,1892.0,5.60278414]
[1742138403613,2.49711,1892.1,1892.0,4.54562414]
[1742138404419,2.49711,1892.1,1892.0,5.60278414]
[1742138406213,2.49711,1892.1,1892.0,3.21572414]
[1742138406418,1.44,1892.1,1891.8,3.2078]
[1742138406715,1.05722,1891.9,1891.8,4.26507]
[1742138406915,1.05722,1891.9,1891.8,3.2078]
[1742138407117,2.50242,1891.9,1891.8,3.2078]
[1742138407315,1.0573,1891.8,1891.7,1.05731]
[1742138407508,1.05735,1891.7,1891.6,0.00792414]
[1742138407710,1.75303,1891.7,1891.6,5.59327414]
[1742138408028,1.75303,1891.7,1891.6,3.21572414]
[1742138408414,1.75303,1891.7,1891.6,0.00792414]
[1742138410522,1.0575,1891.4,1891.3,4.618]
[1742138410817,1.05762,1891.2,1891.1,1.05763]
[1742138411022,1.05767,1891.1,1891.0,9.23969]
[1742138411211,1.3765,1891.1,1891.0,9.23969]
[1742138411923,2.43417,1891.1,1891.0,3.2078]
[1742138412217,2.43417,1891.1,1891.0,4.26552]
[1742138412411,2.43417,1891.1,1891.0,5.62052]
[1742138412619,1.3765,1891.1,1891.0,5.62052]
[1742138413319,1.3765,1891.1,1891.0,6.28762]
[1742138413720,3.2078,1891.7,1891.0,5.22990619]
[1742138413914,1.456,1891.5,1891.4,3.2078]
[1742138414221,1.456,1891.5,1891.4,4.5628]
[1742138414609,1.05755,1891.3,1891.2,6.7718]
[1742138414816,1.05767,1891.1,1891.0,3.20780619]
[1742138415015,1.05767,1891.1,1891.0,4.63950619]
[1742138415416,1.72467,1891.1,1891.0,4.63950619]
[1742138416219,1.72467,1891.1,1891.0,4.6395]
[1742138416721,0.667,1891.1,1891.0,5.69722]
[1742138417118,3.13277,1891.1,1891.0,5.69722]
[1742138417315,3.13277,1891.1,1891.0,4.6395]
[1742138417918,2.0751,1891.1,1891.0,4.6395]
[1742138418311,2.0751,1891.1,1891.0,5.69722]
[1742138418517,3.13277,1891.1,1891.0,4.6395]
[1742138418815,3.13277,1891.1,1891.0,5.69722]
[1742138419014,3.13277,1891.1,1891.0,4.6395]
[1742138419222,2.0751,1891.1,1891.0,5.69722]
[1742138419422,3.13277,1891.1,1891.0,4.6395]
[1742138420626,3.13277,1891.1,1891.0,5.69722]
[1742138421724,3.13277,1891.1,1891.0,4.6395]
[1742138421925,2.0751,1891.1,1891.0,5.69722]
[1742138422119,3.13277,1891.1,1891.0,5.69722]
[1742138423022,3.13277,1891.1,1891.0,4.6395]
[1742138423327,1.05772,1891.0,1890.9,0.00792414]
[1742138423628,3.18162,1891.0,1890.9,0.00792414]
[1742138424219,3.18162,1891.0,1890.9,1.06570414]
[1742138424619,3.18162,1891.0,1890.9,2.45760414]
[1742138425522,3.18162,1891.0,1890.9,0.00792414]
[1742138425719,3.18162,1891.0,1890.9,1.06570414]
[1742138426022,3.18162,1891.0,1890.9,0.00792414]
[1742138426326,3.18162,1891.0,1890.9,1.39982414]
[1742138426913,3.18162,1891.0,1890.9,2.45760414]
[1742138427120,3.18162,1891.0,1890.9,1.39982414]
[1742138428723,1.05778,1890.9,1890.8,3.2078]
[1742138428929,2.42338,1890.9,1890.8,3.2078]
[1742138429123,2.42338,1890.9,1890.8,4.6536]
[1742138430225,2.42338,1890.9,1890.8,5.71143]
[1742138430421,2.42338,1890.9,1890.8,4.6536]
[1742138430923,2.42338,1890.9,1890.8,3.2078]
[1742138431123,1.05783,1890.8,1890.7,1.06581414]
[1742138431323,2.43593,1890.8,1890.7,1.06581414]
[1742138431920,2.43593,1890.8,1890.7,0.00792414]
[1742138432330,2.43593,1890.8,1890.7,1.46382414]
[1742138433527,2.43593,1890.8,1890.7,2.52171414]
[1742138433733,2.43593,1890.8,1890.7,5.72951414]
[1742138434131,0.00792414,1890.9,1890.8,1.05783]
[1742138434335,0.00792414,1890.9,1890.8,3.12643]
[1742138435848,1.06570414,1890.9,1890.8,3.12643]
[1742138436051,1.06570414,1890.9,1890.8,2.0686]
[1742138436649,0.00792414,1890.9,1890.8,3.12643]
[1742138436851,1.06570414,1890.9,1890.8,3.12643]
[1742138437352,0.00792414,1890.9,1890.8,3.12643]
[1742138440344,1.44082414,1890.9,1890.8,3.12643]
[1742138441559,0.00792414,1890.9,1890.8,3.12643]
[1742138443954,2.48910414,1890.9,1890.8,2.0686]
[1742138444160,3.17250414,1890.9,1890.8,1.3503]
[1742138444562,3.17250414,1890.9,1890.8,2.40813]
[1742138445054,3.17250414,1890.9,1890.8,1.3503]
[1742138446463,2.11472414,1890.9,1890.8,1.05783]
[1742138446667,2.11472414,1890.9,1890.8,2.40523]
[1742138446959,3.17250414,1890.9,1890.8,2.40523]
[1742138447456,2.11472414,1890.9,1890.8,2.40523]
[1742138447656,3.17250414,1890.9,1890.8,2.40523]
[1742138448155,3.17250414,1890.9,1890.8,1.3474]
[1742138448559,1.05783,1890.8,1890.7,3.21572414]
[1742138448855,2.38003,1890.8,1890.7,1.35652414]
[1742138449756,2.38003,1890.8,1890.7,4.56432414]
[1742138449955,2.38003,1890.8,1890.7,1.35652414]
[1742138450465,2.38003,1890.8,1890.7,4.56432414]
[1742138450859,2.38003,1890.8,1890.7,5.62221414]
[1742138452963,1.3222,1890.8,1890.7,5.62221414]
[1742138453357,2.38003,1890.8,1890.7,5.62221414]
[1742138454258,2.38003,1890.8,1890.7,4.56432414]
[1742138454460,2.38003,1890.8,1890.7,3.21572414]
[1742138454661,2.38003,1890.8,1890.7,0.00792414]
[1742138455359,2.38003,1890.8,1890.7,3.21572414]
[1742138455565,2.38003,1890.8,1890.7,0.00792414]
[1742138456757,2.38003,1890.8,1890.7,3.21572414]
[1742138456954,2.38003,1890.8,1890.7,4.27361414]
[1742138457764,2.38003,1890.8,1890.7,3.21572414]
[1742138458768,2.38003,1890.8,1890.7,0.00792414]
[1742138460367,2.64529,1890.3,1890.0,1.05822]
[1742138460566,1.78547,1890.2,1890.1,2.47712]
[1742138460767,3.13807,1890.2,1890.1,2.47712]
[1742138461073,1.05822,1890.1,1890.0,4.26604]
[1742138461261,2.41082,1890.1,1890.0,5.68494]
[1742138461462,1.05828,1890.0,1889.9,1.06623414]
[1742138461670,1.05828,1890.0,1889.9,2.48513414]
[1742138461671,2.41088,1890.0,1889.9,2.48513414]
[1742138462662,2.41088,1890.0,1889.9,0.00792414]
[1742138463061,2.41088,1890.0,1889.9,1.06626414]
[1742138463266,2.41088,1890.0,1889.9,0.00792414]
[1742138464860,2.41088,1890.0,1889.5,0.68720619]
[1742138464861,2.64592,1889.9,1889.5,3.2078]
[1742138465070,1.05843,1889.8,1889.7,4.26621]
[1742138465265,2.43833,1889.8,1889.7,4.26621]
[1742138465869,1.3799,1889.8,1889.7,4.26621]
[1742138466272,2.43829,1889.8,1889.7,3.2078]
[1742138466470,2.43829,1889.8,1889.7,4.26625]
[1742138466665,2.43829,1889.8,1889.7,4.555]
[1742138467375,3.11049,1889.8,1889.7,4.555]
[1742138467567,3.11049,1889.8,1889.7,5.61345]
[1742138467874,3.11049,1889.8,1889.7,4.555]
[1742138468065,3.78389,1889.8,1889.7,4.555]
[1742138468771,3.78389,1889.8,1889.7,3.2078]
[1742138469076,1.05855,1889.6,1889.5,3.2078]
[1742138469264,1.05855,1889.6,1889.5,4.555]
[1742138469462,2.52177,1889.7,1889.5,4.555]
[1742138469673,2.52177,1889.7,1889.6,1.3472]
[1742138469863,1.05847,1889.7,1889.6,1.3472]
[1742138470373,1.0585,1889.6,1889.5,4.26636]
[1742138470569,1.0585,1889.6,1889.5,3.2078]
[1742138471676,1.0585,1889.6,1889.5,4.6146]
[1742138473374,1.05862,1889.4,1889.3,3.8703]
[1742138473572,1.05862,1889.4,1889.3,4.26647]
[1742138473773,1.05862,1889.4,1889.3,3.2078]
[1742138474073,1.05862,1889.4,1888.9,29.33]
[1742138474074,1.05871,1889.3,1889.2,1.0587]
[1742138474282,0.681,1889.3,1889.2,1.05873]
[1742138474478,0.681,1889.3,1889.1,7.83055]
[1742138474479,1.73969,1889.3,1889.1,7.83055]
[1742138474681,1.73969,1889.3,1889.2,1.3601]
[1742138474882,1.05873,1889.2,1889.1,3.2078]
[1742138475073,1.72613,1889.2,1889.1,4.5679]
[1742138475474,3.564,1889.7,1889.1,4.5679]
[1742138475777,2.40692,1889.6,1889.4,1.05857]
[1742138475978,2.40692,1889.6,1889.5,1.4548]
[1742138476685,2.40692,1889.6,1889.5,2.51336]
[1742138476974,0.681,1889.6,1889.5,2.51336]
[1742138477180,1.05841,1889.8,1889.7,1.05845]
[1742138477382,1.05841,1889.8,1889.6,3.94607]
[1742138477581,1.05841,1889.8,1889.7,1.4548]
[1742138478380,0.70712414,1889.9,1889.8,1.05839]
[1742138478381,1.76549414,1889.9,1889.8,1.05839]
[1742138478682,2.64501,1890.5,1890.1,1.05821]
[1742138478984,3.34421,1890.5,1890.1,1.05818]
[1742138479180,1.05816,1890.3,1890.2,1.3822]
[1742138479877,0.68302414,1890.4,1890.3,1.05811]
[1742138480081,0.68302414,1890.4,1890.3,4.26591]
[1742138480082,0.00792414,1890.4,1890.3,4.26591]
[1742138480376,0.00792414,1890.4,1890.3,3.9288]
[1742138480581,0.00792414,1890.4,1890.3,4.98691]
[1742138480780,1.33572414,1890.4,1890.3,6.36911]
[1742138481374,0.00792414,1890.4,1890.3,6.36911]
[1742138482176,0.7049,1890.8,1890.7,1.05789]
[1742138482379,1.05782,1890.9,1890.7,1.05784]
[1742138482586,1.05783,1890.8,1890.7,1.05784]
[1742138482886,2.51796,1890.8,1890.7,1.05789]
[1742138483277,2.51796,1890.8,1890.6,4.26571]
[1742138483581,1.05789,1890.7,1890.6,3.2078]
[1742138483782,2.51799,1890.7,1890.6,3.2078]
[1742138485181,2.51799,1890.7,1890.3,0.721]
[1742138485182,1.05803,1890.5,1890.3,1.05808]
[1742138485386,1.05806,1890.4,1890.3,1.05808]
[1742138485586,1.05805,1890.5,1890.3,1.05808]
[1742138485784,2.47335,1890.5,1890.3,1.05808]
[1742138485986,2.47335,1890.5,1890.4,1.05806]
[1742138486186,1.05805,1890.5,1890.4,1.05806]
[1742138486778,1.05792,1890.7,1890.5,1.058]
[1742138486983,1.05792,1890.7,1890.5,2.4496]
[1742138487388,2.47322414,1890.9,1890.6,3.2078]
[1742138487589,1.05783,1890.8,1890.7,1.05786]
[1742138488485,1.41542414,1890.9,1890.8,1.05783]
[1742138488486,2.47324414,1890.9,1890.8,1.05783]
[1742138488687,2.47324414,1890.9,1890.7,1.05785]
[1742138489484,1.05783,1890.8,1890.7,1.05785]
[1742138489685,1.05783,1890.8,1890.7,3.2078]
[1742138489990,1.05792,1890.7,1890.5,9.22036]
[1742138490493,1.05792,1890.7,1890.6,1.05794]
[1742138490890,1.05787,1890.8,1890.6,1.05794]
[1742138491080,1.05794,1890.6,1890.5,3.2078]
[1742138491279,1.05806,1890.4,1890.3,3.2078]
[1742138493386,2.45334,1890.5,1890.4,1.05806]
[1742138493591,1.05806,1890.4,1890.3,3.2078]
[1742138493788,2.45334,1890.5,1890.3,3.2078]
[1742138494094,1.05794,1890.7,1890.3,3.2078]
[1742138494394,1.05789,1890.7,1890.6,1.05793]
[1742138494890,1.76999,1890.8,1890.6,1.05793]
[1742138495187,1.05789,1890.7,1890.6,1.05793]
[1742138497090,1.05789,1890.7,1890.5,3.894]
[1742138497289,1.05789,1890.7,1890.5,4.95195]
[1742138497596,1.05789,1890.7,1890.6,1.05794]
[1742138497798,1.77952414,1890.9,1890.8,1.05783]
[1742138498094,0.00792414,1890.9,1890.8,1.05783]
[1742138498298,0.00792414,1890.9,1890.8,1.72673]
[1742138500901,0.00792414,1890.9,1890.8,3.07053]
[1742138504699,3.19610414,1890.9,1890.8,2.40163]
[1742138505003,2.13832414,1890.9,1890.8,2.40163]
[1742138505801,3.19610414,1890.9,1890.8,2.40163]
[1742138506098,2.13832414,1890.9,1890.8,2.40163]
[1742138506911,3.19610414,1890.9,1890.8,2.40163]
[1742138507100,2.13832414,1890.9,1890.8,2.40163]
[1742138507303,3.19610414,1890.9,1890.8,2.40163]
[1742138507499,3.88280414,1890.9,1890.8,2.40163]
[1742138508002,2.82502414,1890.9,1890.8,2.40163]
[1742138509101,2.13832414,1890.9,1890.8,2.40163]
[1742138509301,2.13832414,1890.9,1890.8,3.10073]
[1742138510797,0.00792414,1890.9,1890.8,3.10073]
[1742138511003,1.3445,1891.1,1891.0,1.05772]
[1742138511202,1.3445,1891.1,1891.0,4.26552]
[1742138511600,1.3445,1891.1,1891.0,5.65422]
[1742138515406,0.00792414,1891.2,1891.1,1.05767]
[1742138515711,2.8324,1891.5,1891.4,1.0575]
[1742138515903,3.88984,1891.5,1891.4,1.0575]
[1742138516104,3.88984,1891.5,1891.2,3.2078]
[1742138516105,2.8324,1891.5,1891.2,3.2078]
[1742138516305,1.05755,1891.3,1891.2,1.0576]
[1742138516501,1.05755,1891.3,1891.2,4.2654]
[1742138516697,1.4316,1891.4,1891.2,3.2078]
[1742138516901,1.05755,1891.3,1891.2,3.2078]
[1742138517106,1.05755,1891.3,1891.2,1.05761]
[1742138517306,1.43952414,1891.4,1891.3,1.05755]
[1742138517503,1.43952414,1891.4,1891.3,2.49845]
[1742138517703,2.49702414,1891.4,1891.3,2.49845]
[1742138518305,1.43952414,1891.4,1891.1,0.00792414]
[1742138518509,2.46698,1891.3,1891.2,1.05757]
[1742138518712,2.46698,1891.3,1891.2,1.05761]
[1742138518910,2.46698,1891.3,1891.2,4.26541]
[1742138519614,2.46698,1891.3,1891.2,1.05761]
[1742138519812,2.46698,1891.3,1891.2,4.26541]
[1742138520113,1.4094,1891.3,1891.2,4.26541]
[1742138520710,1.4094,1891.3,1891.1,2.52135414]
[1742138521017,1.74521,1891.2,1891.1,2.52135414]
[1742138521214,0.6876,1891.2,1891.1,2.52135414]
[1742138521607,2.0418,1891.2,1891.1,2.52135414]
[1742138522115,3.09941,1891.2,1891.1,2.52135414]
[1742138522315,2.0418,1891.2,1891.1,2.52135414]
[1742138523808,3.09941,1891.2,1891.1,2.52135414]
[1742138524717,1.3542,1891.2,1891.1,2.52135414]
[1742138529321,0.68112414,1891.4,1891.3,1.05755]
[1742138529520,2.12282414,1891.4,1891.3,1.05755]
[1742138529915,2.12282414,1891.4,1891.3,2.49855]
[1742138530617,1.44962414,1891.4,1891.3,2.49855]
[1742138533920,0.708,1891.6,1891.5,1.05744]
[1742138534122,0.708,1891.6,1891.5,4.26524]
[1742138534427,2.0968,1891.7,1891.6,1.05739]
[1742138534623,0.727,1891.9,1891.8,1.05727]
[1742138534830,2.1565,1891.9,1891.8,1.05727]
[1742138535320,2.1565,1891.9,1891.8,2.50137]
[1742138537025,0.71562414,1892.0,1891.9,1.05722]
[1742138537226,0.71562414,1892.0,1891.9,5.60532]
[1742138537422,1.77278414,1892.0,1891.7,3.2078]
[1742138537622,2.40333,1891.9,1891.7,5.60538]
[1742138537920,1.78903,1891.9,1891.7,4.26508]
[1742138538129,1.78903,1891.9,1891.7,5.60538]
[1742138538527,0.7318,1891.9,1891.8,1.05727]
[1742138538727,1.78902,1891.9,1891.8,1.3403]
[1742138539229,1.78902,1891.9,1891.8,2.39757]
[1742138539431,1.78902,1891.9,1891.8,1.3403]
[1742138539626,0.7318,1891.9,1891.8,1.05727]
[1742138540134,0.7318,1891.9,1891.8,2.47707]
[1742138540333,1.78902,1891.9,1891.8,2.47707]
[1742138541230,1.78902,1891.9,1891.8,1.4198]
[1742138542030,0.7318,1891.9,1891.7,3.2078]
[1742138542332,2.64333,1891.7,1891.2,3.2078]
[1742138542536,1.05754,1891.4,1891.3,1.05755]
[1742138543130,1.05748,1891.5,1891.4,1.05749]
[1742138543331,1.05749,1891.5,1891.4,1.0575]
[1742138543835,1.0575,1891.4,1891.3,2.46322]
[1742138544034,1.0575,1891.4,1891.3,1.4057]
[1742138544232,1.05755,1891.3,1891.2,4.6135]
[1742138544434,3.98999,1891.6,1891.2,4.6135]
[1742138544624,1.05755,1891.3,1891.2,4.2654]
[1742138545239,1.05755,1891.3,1891.2,3.2078]
[1742138545537,1.05761,1891.2,1891.1,0.00792414]
[1742138545727,1.76741,1891.2,1891.1,0.00792414]
[1742138546238,1.05757,1891.3,1891.2,1.05757]
[1742138546533,1.05761,1891.2,1891.1,4.27334414]
[1742138546738,1.7674,1891.3,1891.2,1.05761]
[1742138547739,1.05761,1891.2,1891.1,4.27334414]
[1742138548738,5.826,1891.6,1891.3,1.05755]
[1742138548941,1.05753,1891.4,1891.2,0.6622]
[1742138549438,1.05753,1891.4,1891.3,3.2078]
[1742138550238,1.05753,1891.4,1891.3,4.26535]
[1742138550432,1.3441,1891.5,1891.4,1.0575]
[1742138550736,0.00792414,1892.0,1891.4,2.64374]
[1742138550943,2.48967,1891.8,1891.7,4.26511]
[1742138551333,1.4324,1891.8,1891.7,4.26511]
[1742138551642,1.37062414,1892.0,1891.9,1.05722]
[1742138551832,1.37062414,1892.0,1891.9,4.26502]
[1742138552032,0.70122414,1892.0,1891.9,4.26502]
[1742138553043,0.70122414,1892.0,1891.9,3.2078]
[1742138553044,1.75838414,1892.0,1891.9,3.2078]
[1742138553232,1.75838414,1892.0,1891.9,4.26502]
[1742138553233,3.19338414,1892.0,1891.9,4.26502]
[1742138553437,2.13622414,1892.0,1891.9,4.26502]
[1742138555144,3.19338414,1892.0,1891.9,3.2078]
[1742138556144,2.13622414,1892.0,1891.9,4.26502]
[1742138556840,3.19338414,1892.0,1891.9,4.26502]
[1742138557248,3.19338414,1892.0,1891.9,3.2078]
[1742138557947,3.19338414,1892.0,1891.9,4.26502]
[1742138558844,2.13622414,1892.0,1891.9,4.26502]
[1742138560844,2.13622414,1892.0,1891.9,5.70112]
[1742138561553,1.44292414,1892.0,1891.9,6.36212]
[1742138561851,1.44292414,1892.0,1891.9,7.02292]
[1742138563646,1.44292414,1892.0,1891.9,6.36212]
[1742138563850,1.44292414,1892.0,1891.9,5.70112]
[1742138564653,2.12402414,1892.0,1891.9,5.70112]
[1742138564852,1.44292414,1892.0,1891.9,5.70112]
[1742138566254,1.4038,1892.2,1892.1,1.05711]
[1742138566651,2.107,1892.2,1892.1,1.05711]
[1742138566851,2.107,1892.2,1892.1,2.46041]
[1742138568449,3.16405,1892.2,1892.1,1.4033]
[1742138568755,2.7715,1892.2,1891.9,3.2078]
[1742138568958,1.3288,1892.1,1892.0,1.05716]
[1742138569153,1.3288,1892.1,1892.0,2.42816]
[1742138574358,0.7227,1892.2,1892.1,1.05711]
[1742138574558,2.0517,1892.2,1892.1,5.60711]
[1742138575450,1.329,1892.2,1892.1,5.60711]
[1742138578253,2.38605,1892.2,1892.1,5.60711]
[1742138578457,3.04915,1892.2,1892.1,5.60711]
[1742138578849,1.9921,1892.2,1892.1,5.60711]
[1742138580762,1.329,1892.2,1892.1,5.60711]
[1742138583063,2.38605,1892.2,1892.1,5.60711]
[1742138583265,1.329,1892.2,1892.1,9.16111]
[1742138584268,2.38605,1892.2,1892.1,9.16111]
[1742138584468,1.329,1892.2,1892.1,9.16111]
[1742138588068,0.005209,1892.3,1892.2,1.05705]
[1742138588269,1.350809,1892.3,1892.2,3.11835]
[1742138588664,1.4508,1892.4,1892.3,1.05699]
[1742138588974,1.4508,1892.4,1892.3,5.65489]
[1742138589765,1.05687,1892.6,1892.3,4.5979]
[1742138589967,1.4508,1892.4,1892.3,3.2078]
[1742138590271,1.4508,1892.4,1892.3,4.26479]
[1742138590459,1.05681,1892.7,1892.3,5.85018]
[1742138590665,2.8739,1892.7,1892.3,5.85018]
[1742138590971,3.9307,1892.7,1892.6,1.05683]
[1742138591173,2.4799,1892.7,1892.6,1.05683]
[1742138591372,1.4231,1892.7,1892.6,1.05683]
[1742138594578,2.47987,1892.7,1892.5,4.26464]
[1742138594770,1.4231,1892.7,1892.5,3.2078]
[1742138594965,1.05683,1892.6,1892.5,3.2078]
[1742138595366,2.47991,1892.7,1892.5,4.26468]
[1742138595570,1.05683,1892.6,1892.5,4.26468]
[1742138599875,1.05683,1892.6,1892.5,3.2078]
[1742138600080,2.47991,1892.7,1892.6,1.05683]
[1742138600875,2.47991,1892.7,1892.6,2.46513]
[1742138601465,2.47991,1892.7,1892.6,1.4083]
[1742138601875,1.4231,1892.7,1892.6,2.46513]
[1742138602776,0.6976,1892.7,1892.6,2.46513]
[1742138603175,4.2645,1892.9,1892.6,1.4083]
[1742138603176,1.0567,1892.9,1892.6,1.4083]
[1742138603379,0.7058,1892.9,1892.8,1.05672]
[1742138603575,0.692,1893.0,1892.9,1.05666]
[1742138603876,1.74864,1893.0,1892.8,3.19138]
[1742138604078,1.74864,1893.0,1892.9,1.3408]
[1742138606182,1.7486,1893.0,1892.9,1.3408]
[1742138606881,1.05669,1892.9,1892.8,1.05668]
[1742138607081,0.692,1893.0,1892.7,6.7598]
[1742138607082,1.74863,1893.0,1892.9,1.05666]
[1742138610088,1.05666,1892.9,1892.8,1.3585]
[1742138610285,1.05672,1892.8,1892.7,4.26454]
[1742138610475,1.05672,1892.8,1892.7,5.69374]
[1742138610881,1.05672,1892.8,1892.7,4.637]
[1742138611382,1.75132,1892.8,1892.7,4.637]
[1742138611787,1.75132,1892.8,1892.7,5.69377]
[1742138612689,0.6946,1892.8,1892.5,1.05684]
[1742138612891,1.05683,1892.6,1892.5,1.4292]
[1742138613086,1.05683,1892.6,1892.5,2.48604]
[1742138613286,2.45473,1892.6,1892.5,2.48604]
[1742138613789,1.3979,1892.6,1892.5,2.48604]
[1742138614597,2.45473,1892.6,1892.5,2.48604]
[1742138615485,1.3979,1892.6,1892.5,2.48604]
[1742138616592,2.45473,1892.6,1892.5,2.48604]
[1742138617889,1.3979,1892.6,1892.5,2.48604]
[1742138618796,0.6946,1892.8,1892.7,1.05677]
[1742138618994,3.16734,1893.0,1892.6,8.70437]
[1742138619195,1.3342,1892.9,1892.8,4.26452]
[1742138619605,0.7147,1893.0,1892.9,1.05666]
[1742138619806,2.0489,1893.0,1892.9,1.76826]
[1742138620005,2.0489,1893.0,1892.9,3.21396]
[1742138623802,3.1055,1893.0,1892.9,3.21396]
[1742138624207,3.1055,1893.0,1892.9,2.50236]
[1742138624409,3.1055,1893.0,1892.9,1.4457]
[1742138625612,3.1055,1893.0,1892.9,2.50236]
[1742138626414,2.0489,1893.0,1892.9,2.50236]
[1742138629318,2.0489,1893.0,1892.9,5.71016]
[1742138630523,1.3342,1893.0,1892.9,5.71016]
[1742138630920,1.3647,1893.2,1893.1,1.05655]
[1742138631321,2.42119,1893.2,1893.1,1.05655]